Cogmind - Beta 13 @@@ ROGUE MODE // 2024.04.03 @ 23:18:25 Player: stenky Result: Destroyed by S-10 Pest with Light Assault Rifle Performance ------------- Evolutions (1) 500 Regions Visited (3) 600 Robots Destroyed (9) 45 Value Destroyed (258) 258 Prototype IDs (0) 0 Alien Tech Used (0) 0 Bonus (0) 0 TOTAL SCORE: 1403 Bonus ------- None Cogmind --------- Core Integrity 0/400 Matter 300/300 Energy 100/100 System Corruption 9% Temperature Cool (0) Movement Core (50) Location -9/Materials Parts ------- > --- POWER (1) -------- (None) > --- PROPULSION (4) --- (None) > --- UTILITY (2) ------ (None) > --- WEAPON (2) ------- (None) > --- INVENTORY (5) ---- Cargo Storage Unit Light Assault Rifle Flail Peak State ------------ > --- POWER ------------ Light Nuclear Core > --- PROPULSION ------- Light Treads Aluminum Leg Flight Unit > --- UTILITY ---------- Heat Sink Medium Matter Pod > --- WEAPON ----------- Light Assault Rifle Light Assault Rifle > --- INVENTORY -------- Light Assault Rifle Flail [Rating: 10] Favorites ----------- Power Light Ion Engine Engine Light Ion Engine Power Core Light Nuclear Core Propulsion Flight Unit Treads Light Treads Leg Aluminum Leg Flight Unit Flight Unit Utility Tractor Beam Device Tractor Beam Storage Medium Matter Pod Weapon Light Assault Rifle Energy Gun Medium Laser Ballistic Gun Light Assault Rifle Impact Weapon Flail Build | -11 -10 -10 -9 ------- Run | Yrd Mat Min Mat Slots Evolved 2 | . . . 2 Power . | . . . . Propulsion 2 | . . . 2 Utility . | . . . . Weapon . | . . . . Parts Attached 25 | 7 3 2 13 Power 4 | 1 1 . 2 Engine 3 | 1 1 . 1 Core 1 | . . . 1 Reactor . | . . . . Propulsion 6 | 2 2 . 2 Treads 1 | . . . 1 Leg 3 | 2 . . 1 Wheel . | . . . . Hover . | . . . . Flight 2 | . 2 . . Utility 5 | 1 . . 4 Device 3 | . . . 3 Storage 2 | 1 . . 1 Processor . | . . . . Hackware . | . . . . Protection . | . . . . Artifact . | . . . . Weapon 10 | 3 . 2 5 Energy Gun 1 | 1 . . . Energy Cannon . | . . . . Ballistic Gun 7 | 2 . 2 3 Ballistic Cannon . | . . . . Launcher . | . . . . Special Weapon . | . . . . Impact Weapon 2 | . . . 2 Slashing Weapon . | . . . . Piercing Weapon . | . . . . Special Melee Weapon . | . . . . Unidentified Prototypes . | . . . . Corrupted Parts 1 | . . . 1 System Corruption 9 | . . . 9 Parts Lost 13 | . . 1 12 Power 2 | . . . 2 Propulsion 4 | . . . 4 Utility 4 | . . . 4 Weapon 3 | . . 1 2 Highest Loss Streak 7 | . . 1 7 To Critical Strikes . | . . . . Average Slot Usage (%) 65 | . 73 68 61 Engine 9 | . 14 14 6 Core 1 | . . . 3 Treads 2 | . . . 5 Leg 2 | . 4 . 3 Flight 17 | . 23 28 11 Device 5 | . . . 9 Storage 2 | . 2 . 3 Ballistic Gun 20 | . 28 25 14 Impact Weapon 2 | . . . 5 Naked Turns 17 | . . . 17 Heaviest Build 12 | 12 12 5 10 Greatest Support 20 | 20 20 8 20 Greatest Overweight (x) 1 | 1 . . 1 Average Overweight (x) . | . . . . Largest Inventory Capacity 8 | 8 8 5 5 Average Capacity 5 | 6 5 5 5 Most Carried 5 | 5 5 3 5 Average Carried 2 | 1 2 2 2 Final Capacity 8 | 8 5 5 5 Final Carried 4 | 1 3 2 4 Class Distribution -------------------- 75% | Mutant 24% | Scavenger-Mutant Dominant Class ---------------- Mutant | -10/Materials Mutant | -10/Mines Scavenger-Mutant | -9/Materials Resources | -11 -10 -10 -9 ----------- Run | Yrd Mat Min Mat Matter Collected 536 | 171 45 90 230 Remotely 157 | . . . 157 Salvage Created 301 | . 45 . 256 Parts 10 | . 4 . 6 Haulers Intercepted . | . . . . Recyclers Shooed . | . . . . Parts Field Recycled . | . . . . Retrieved Matter . | . . . . Parts Self-Destructed . | . . . . Prevented . | . . . . Kills | -11 -10 -10 -9 ------- Run | Yrd Mat Min Mat Combat Hostiles Destroyed 9 | . 3 . 6 Guns 5 | . 3 . 2 Classes Destroyed 3 | . 1 . 2 Swarmer 3 | . 3 . . Grunt 5 | . . . 5 Sentry 1 | . . . 1 Best Kill Streak 4 | . 3 . 4 Combat Bots Only 4 | . 3 . 4 Max Kills in Single Turn 1 | . 1 . 1 Gunslinging . | . . . . Exploded . | . . . . Melee . | . . . . Uniques/NPCs Destroyed . | . . . . Combat | -11 -10 -10 -9 -------- Run | Yrd Mat Min Mat Hostile Shots Fired 219 | . 27 7 185 Missed 90 | . 12 3 75 Damage Taken 1356 | . 123 168 1065 Core 502 | . 23 73 406 Absorbed by Shields . | . . . . Core Remaining (%) 80 | 100 . 61 . Volleys Fired 24 | . 11 . 13 Largest 2 | . 2 . 2 Hottest 40 | . 40 . 40 Shots Fired 48 | . 22 . 26 Gun 48 | . 22 . 26 Cannon . | . . . . Launcher . | . . . . Special . | . . . . Kinetic 48 | . 22 . 26 Thermal . | . . . . Explosive . | . . . . Electromagnetic . | . . . . Robot Hit Streak 10 | . 10 . 5 Robot Miss Streak 6 | . 2 . 6 Penetration Max . | . . . . Secondary Targets 1 | . 1 . . Max Gunslinging Chain 1 | . 1 . . Shots Hit Robots 44 | . 15 . 29 Core Hits 12 | . 5 . 7 Critical Kills . | . . . . Critical Parts Destroyed 3 | . . . 3 Critical Strikes 3 | . . . 3 Smash 3 | . . . 3 Melee Attacks 20 | . . . 20 Impact 20 | . . . 20 Slashing . | . . . . Piercing . | . . . . Sneak Attacks . | . . . . Combat Hostiles . | . . . . Follow-up Attacks 2 | . . . 2 Damage Inflicted 660 | . 112 . 548 Guns 260 | . 112 . 148 Cannons . | . . . . Explosions . | . . . . Melee 400 | . . . 400 Ramming . | . . . . Kinetic 260 | . 112 . 148 Thermal . | . . . . Explosive . | . . . . Electromagnetic . | . . . . Impact 400 | . . . 400 Slashing . | . . . . Piercing . | . . . . Highest Corruption 9 | . . . 9 Average Corruption 9 | . . . 9 Corruption Purged . | . . . . Corruption Blocked . | . . . . Effects 9 | . . . 9 Message Errors 3 | . . . 3 Energy Discharges 1 | . . . 1 Data Loss (minor) 5 | . . . 5 Overload Shots . | . . . . Overflow Damage 122 | . . . 122 Projectiles . | . . . . Explosions . | . . . . Melee 122 | . . . 122 Knockbacks 1 | . . . 1 Impact 1 | . . . 1 Kinetic . | . . . . Secondary . | . . . . Self-Inflicted Damage . | . . . . Shots . | . . . . Rammed 1 | 1 . . . Targets Rammed 2 | 1 . . 1 Kicked 1 | . . . 1 Crushed . | . . . . Highest Temperature 10 | . 10 . 8 Average Temperature 4 | . 4 . 4 Received Heat Transfer 216 | . . . 216 Siege Activations . | . . . . Robots Corrupted . | . . . . Combat Hostiles . | . . . . Parts Fried 6 | . . . 6 Impact Corruptions 5 | . . . 5 Robots Melted . | . . . . Combat Hostiles . | . . . . Parts Melted . | . . . . Heat Transferred . | . . . . Parts Sabotaged . | . . . . Parts Stolen . | . . . . Parts Stripped . | . . . . Power Chain Reactions . | . . . . Alert | -11 -10 -10 -9 ------- Run | Yrd Mat Min Mat Peak Influence 161 | . 115 94 161 Initial 44 | . . 44 36 Average 74 | . 35 79 105 Maximum Alert Level . | . . . . Low Security (%) 100 | 100 100 100 100 Level 1 . | . . . . Level 2 . | . . . . Level 3 . | . . . . Level 4 . | . . . . Level 5 . | . . . . High Security . | . . . . Max Security . | . . . . Squads Dispatched 1 | . . . 1 Investigation . | . . . . Extermination . | . . . . Reinforcement 1 | . . . 1 Assault . | . . . . Garrison . | . . . . Intercept . | . . . . Searches Triggered . | . . . . Construction Impeded . | . . . . Haulers Reinforced . | . . . . Active Scanning Responses . | . . . . Cargo Convoy Interrupts . | . . . . Stealth | -11 -10 -10 -9 --------- Run | Yrd Mat Min Mat Distress Signals 1 | . . . 1 Communications Jammed . | . . . . Distress Signals . | . . . . Times Spotted 38 | . 8 9 21 Peak Tracking Total 12 | . 4 8 12 Tactical Retreats 3 | . . 3 . Traps | -11 -10 -10 -9 ------- Run | Yrd Mat Min Mat Traps Triggered . | . . . . Indirectly . | . . . . Trap Hack Attempts . | . . . . Triggered . | . . . . Disarmed . | . . . . Reprogrammed . | . . . . Reused . | . . . . Traps Extracted . | . . . . Installed . | . . . . Triggered . | . . . . Machines | -11 -10 -10 -9 ---------- Run | Yrd Mat Min Mat Machines Disabled . | . . . . Max in Single Turn . | . . . . Machines Repaired . | . . . . Machines Dismantled . | . . . . Machines Sabotaged . | . . . . Overloaded Fab Kills . | . . . . Hacking | -11 -10 -10 -9 --------- Run | Yrd Mat Min Mat Machines Accessed 2 | . 2 . . Terminals 1 | . 1 . . Fabricators . | . . . . Repair Stations . | . . . . Recycling Units 1 | . 1 . . Scanalyzers . | . . . . Garrison Access . | . . . . Total Hacks 8 | . 8 . . Successful 4 | . 4 . . Failed 4 | . 4 . . Catastrophic . | . . . . Database Lockouts . | . . . . Manual . | . . . . Terminals 1 | . 1 . . Fabricators . | . . . . Repair Stations . | . . . . Recycling Units 7 | . 7 . . Scanalyzers . | . . . . Garrison Access . | . . . . Terminal Hacks . | . . . . Fabricator Hacks . | . . . . Repair Station Hacks . | . . . . Recycling Unit Hacks 4 | . 4 . . Process 1 | . 1 . . Report Inventory 1 | . 1 . . Retrieve Components 2 | . 2 . . Scanalyzer . | . . . . Garrison Access Hacks . | . . . . Unauthorized Hacks . | . . . . Terminals . | . . . . Fabricators . | . . . . Repair Stations . | . . . . Recycling Units . | . . . . Scanalyzers . | . . . . Garrison Access . | . . . . Data Cores Recovered . | . . . . Used . | . . . . Hacking Detections 1 | . 1 . . Full Trace Events . | . . . . Feedback Events . | . . . . Feedback Blocked . | . . . . Robot Schematics Acquired . | . . . . Robots Built . | . . . . Authchips . | . . . . Time . | . . . . Total Robot Build Rating . | . . . . Part Schematics Acquired . | . . . . Parts Built . | . . . . Authchips . | . . . . Time . | . . . . Total Part Build Rating . | . . . . Parts Repaired . | . . . . Time . | . . . . Parts Recycled . | . . . . Recycled Matter 115 | . 115 . . Retrieved Matter . | . . . . Retrieved Components . | . . . . Parts Scanalyzed . | . . . . Part Schematics Acquired . | . . . . Parts Damaged . | . . . . Bothacking | -11 -10 -10 -9 ------------ Run | Yrd Mat Min Mat Used RIF Installer . | . . . . Robots Hacked . | . . . . Non-combat . | . . . . Combat . | . . . . Robot Hacks Applied . | . . . . Relay Couplers Released . | . . . . Fabnet Peak Effective % . | . . . . Robots Rewired . | . . . . Allies Hacked . | . . . . Hacks Repelled . | . . . . Allies | -11 -10 -10 -9 -------- Run | Yrd Mat Min Mat Total Allies . | . . . . Largest Group . | . . . . Highest-Rated Group . | . . . . Highest-Rated Ally . | . . . . Total Orders . | . . . . Ally Attacks . | . . . . Total Damage . | . . . . Kills . | . . . . Allies Corrupted . | . . . . Allies Melted . | . . . . Intel | -11 -10 -10 -9 ------- Run | Yrd Mat Min Mat Robot Analysis Total . | . . . . Derelict Logs Recovered 1 | . . 1 . Drone Launches . | . . . . Drone Recoveries . | . . . . Exploration | -11 -10 -10 -9 ------------- Run | Yrd Mat Min Mat Turns Passed 586 | 66 118 123 279 Spaces Moved 756 | 48 175 326 207 Core 68 | 26 . . 42 Treads 38 | . . . 38 Legs 74 | 22 11 . 41 Wheels . | . . . . Hover . | . . . . Flight 576 | . 164 326 86 Fastest Speed 37 | 50 37 37 37 Average Speed 54 | 99 42 37 80 Slowest Speed 160 | 120 120 37 160 Overloaded Moves . | . . . . Propulsion Burnouts . | . . . . Robots Hopped 11 | . 1 10 . Cave-ins Triggered . | . . . . Exploration Rate (%) 30 | 5 27 71 19 Regions Visited 3 Branch Regions 1 Pre-discovered Areas . | . . . . Known Exits Taken . | . . . . Unknown Exits Taken 3 | 1 1 1 . Scrap Searched . | . . . . Spaces Dug . | . . . . Terrain Destroyed . | . . . . Melee . | . . . . Projectile . | . . . . AOE . | . . . . Terrain Rammed . | . . . . Walls Destroyed . | . . . . Machines Disabled . | . . . . Actions | -11 -10 -10 -9 --------- Run | Yrd Mat Min Mat Total 852 | 66 200 317 269 Wait 8 | . 2 . 6 Move 732 | 47 172 306 207 Hop 10 | . 1 9 . Pick Up 25 | 9 6 . 10 Fast Attach . | . . . . Attach 14 | 6 . 1 7 Detach . | . . . . Swap 11 | 1 3 1 6 Drop 9 | 2 5 . 2 Fire 24 | . 11 . 13 Melee 17 | . . . 17 Ram 1 | 1 . . . Kick 1 | . . . 1 Crush . | . . . . Escape Stasis . | . . . . Rewire . | . . . . Trap . | . . . . Miscellaneous . | . . . . Route ------- -11/Scrapyard -10/Materials -10/Mines (discovered 2 exits: [*Mat x2]) -9/Materials (discovered 1 exit: *Min) History --------- Turn | Location | Event 23 | -11/Scrapyard | Discovered new exit (range 14) 67 | -11/Scrapyard | Entered Materials 181 | -10/Materials | Discovered new exit (range 6) 185 | -10/Materials | Entered Mines 204 | -10/Mines | Assembled infested the area 292 | -10/Mines | Discovered new exit (range 9) 303 | -10/Mines | Build established: Mutant 304 | -10/Mines | Discovered new exit (range 7) 308 | -10/Mines | Entered Materials 308 | -9/Materials | Evolved 2 slots: Propulsion x2 309 | -9/Materials | Identified exit to Mines 406 | -9/Materials | Lost 3 parts (1p1n1u) 559 | -9/Materials | Core integrity fell below 50% 574 | -9/Materials | Core integrity fell below 20% 587 | -9/Materials | Destroyed by S-10 Pest with Light Assault Rifle Last Messages --------------- System corrupted: Component data lost. G-34 Mercenary suffers critical hit (Destroy). T-07 Excavator destroyed. Lgt. Treads destroyed. System corrupted: Component data lost. Lgt. Assault Rifle destroyed. Lgt. Nuclear Core destroyed. Kicked S-10 Pest out of the way. Aluminum Leg destroyed. Lgt. Assault Rifle destroyed. S-10 Pest suffers critical hit (Destroy). S-10 Pest destroyed. Heat Sink destroyed. =OIG<5LF&YG>IW%F 7ETZP >YB1H< Med. Matter Pod destroyed. T-07 Excavator is excavating. Critical hit (Burn: +37). S-10 Pest destroyed. T-07 Excavator is excavating. Acquired Cargo Storage Unit. Map ----- +----------------------------------------------------+ | | | | | | | | | | | | | | | | | | | ???????????????????????????????????? | | ???????????????????????????????????? | | ???????????????????????????????????? | | ???????????????????????????????????? | | ???????????????????????????????????? | | ???????????????????????????????????? | | ??????####?????????????????????????? | | ?????##"""##???????????????????????? | | ????##"|||"#???????????????????????? | | ????#"" ""???????????????????????? | | ????# ???????????????????????? | | ????# > ????????????????????????? | | ????# ????????????????????????? | | ????# ????????????????????????? | | ?????# ????????????????????????? | | ??????# ########????????????????## | | ??????# #@ ! #????????????????# | | ??????+ ssss #????????????????# | | ??????# s# #????????????????#" | | ??????# s# """ #????????????????#" | | ??????# # """ #????????????????#" | | ??????# # """ #????????????????# | | ??????# ########????????????????# | | ??????# #???????????????????????# | | ?????## ##???#######????????????## | | ?????# ##### ###???????????? | | ?????# # #???????????? | | ?????# *% #???????????? | | ?????# = # #???????????? | | ?????# ##### #?????????????? | | ?????#######???### ###?????????????? | | ?????????????????# #???????????????? | | ?????????????#####/########????????? | | ?????????????# #????????? | | ?????????????# """ """ #????????? | | ?????????????# """"""""" #????????? | | ?????????????# = """"" #????????? | | ?????????????# % #????????? | | ?????????????#######/######????????? | | ?????????????????# ############# | | ?????????????????# | +----------------------------------------------------+ Best States ------------- Heat Dissipation 38 Energy Generation 14 Energy Capacity 250 Matter Stores 400 Matter Capacity 400 Sight Range 16 Terrain Scan Density 10 Evasion (%) 62 Recoil Reduction 1 Item Schematics ----------------- None Robot Schematics ------------------ None Fabricated ------------ Nothing Alien Tech Used ----------------- None Achievements -------------- Use The Force Challenges ------------ None Game ------ Seed ConstructHugeSplitter Manual? 0 Play Time 00:18:57 Cumulative 3.3 hours Start 2024.04.03 @ 23:03:23 End 2024.04.03 @ 23:18:25 Sessions 1 Manual Loads 0 Difficulty Rogue Special Mode None Game No. 4 Rogue 4 Adventurer 0 Explorer 0 Win Type - Total 0 Types 0/0/0/0/0/0/0/0/0 Lore% 1 Gallery% 5 Achievement% 7 Wizard Run 0 Options --------- Layout 1 ASCII 0 Keyboard 0 Movement Arrows Keybinds 0 Fullscreen 1 Font 32/SmallcapsGlow Map View 50x35 Zoom Use 0% Tactical HUD 0 Map Filters NONE Filters NONE Steam 1 RUN: e43900c9-cf2f-4f45-a3f9-9382caa60b61